bitfinex/quotes_SOLUSD_20260105
["timestamp","ask_amount","ask_price","bid_price","bid_amount"]
[1767627010465,9.86296976,134.76,134.72,0.65282964]
[1767627010663,3.81708523,134.76,134.72,0.65282964]
[1767627010964,11.75096603,134.76,134.72,0.65282964]
[1767627011265,7.51969594,134.76,134.71,0.65282964]
[1767627011454,3.81708523,134.75,134.71,0.65282964]
[1767627011658,7.51969594,134.76,134.71,0.65282964]
[1767627011867,3.81708523,134.75,134.71,0.65282964]
[1767627012239,3.81708523,134.75,134.71,8.07586533]
[1767627012567,3.81708523,134.76,134.72,0.65282964]
[1767627013258,11.23683642,134.78,134.73,0.65282964]
[1767627013464,7.51875119,134.78,134.73,0.65282964]
[1767627013839,3.81708523,134.77,134.73,0.65282964]
[1767627014562,7.51839762,134.8,134.75,4.46991487]
[1767627014864,0.1,134.8,134.77,0.65282964]
[1767627015347,0.1,134.8,134.78,0.65282964]
[1767627016766,0.1,134.8,134.78,4.46991487]
[1767627016946,0.1,134.8,134.78,11.88940998]
[1767627017148,0.1,134.8,134.79,0.65282964]
[1767627018048,0.1,134.81,134.8,0.65282964]
[1767627018271,0.1,134.82,134.8,4.46991487]
[1767627018442,0.1,134.82,134.8,0.65282964]
[1767627020143,0.1,134.82,134.76,0.65282964]
[1767627020144,0.51300503,134.81,134.76,0.65282964]
[1767627020473,3.81708523,134.79,134.76,0.65282964]
[1767627021251,11.23608145,134.79,134.75,0.65282964]
[1767627021466,3.81708523,134.79,134.75,8.07392955]
[1767627021665,11.7471018,134.79,134.75,0.65282964]
[1767627021857,4.32797341,134.79,134.75,8.07395762]
[1767627022159,11.23567591,134.8,134.76,0.65282964]
[1767627022661,0.67842049,134.81,134.76,11.23765093]
[1767627022865,0.13755857,134.8,134.76,7.4205657]
[1767627023043,0.13755857,134.8,134.76,11.23765093]
[1767627023372,0.13755857,134.8,134.76,11.89048057]
[1767627024567,11.23504246,134.81,134.76,11.89048057]
[1767627025274,11.23504246,134.81,134.77,0.65282964]
[1767627025852,7.41795723,134.81,134.77,0.65282964]
[1767627026057,0.14816108,134.77,134.73,0.65282964]
[1767627026253,3.81708523,134.77,134.73,8.07481885]
[1767627026451,3.81708523,134.77,134.74,0.65282964]
[1767627026751,3.81708523,134.78,134.74,8.07448062]
[1767627027474,3.9546438,134.78,134.74,8.07448062]
[1767627027774,3.81708523,134.78,134.74,8.07448062]
[1767627028080,8.0976029,134.79,134.74,8.07448062]
[1767627028374,3.81708523,134.78,134.74,8.07448062]
[1767627029278,11.23626764,134.79,134.75,0.65282964]
[1767627029863,3.81708523,134.78,134.75,0.65282964]
[1767627030160,0.66771089,134.77,134.73,8.07482042]
[1767627030371,4.48479612,134.77,134.73,0.65282964]
[1767627030862,3.81708523,134.77,134.73,0.65282964]
[1767627031063,4.49009711,134.76,134.72,0.68405251]
[1767627031272,3.81708523,134.75,134.72,0.68405251]
[1767627031668,8.09363321,134.76,134.72,0.68405251]
[1767627031859,3.81708523,134.75,134.72,0.68405251]
[1767627032373,11.91071844,134.76,134.72,0.68405251]
[1767627033281,3.81708523,134.74,134.7,21.62781846]
[1767627033479,4.48479612,134.74,134.7,8.10791257]
[1767627033671,11.90651756,134.74,134.7,8.10791257]
[1767627034381,3.81708523,134.74,134.7,8.10791257]
[1767627034585,3.81708523,134.74,134.71,0.68405251]
[1767627035865,11.2385916,134.75,134.71,0.68405251]
[1767627037268,13.52,134.77,134.73,0.68405251]
[1767627037484,3.81708523,134.77,134.73,0.68405251]
[1767627038189,11.23737648,134.77,134.73,0.68405251]
[1767627038373,3.81708523,134.75,134.71,21.62725889]
[1767627038570,3.81708523,134.75,134.72,0.68405251]
[1767627038773,3.81708523,134.74,134.7,0.68405251]
[1767627039082,3.81708523,134.73,134.7,0.68405251]
[1767627039466,3.81708523,134.74,134.7,0.68405251]
[1767627039670,0.10512185,134.75,134.7,0.68405251]
[1767627039987,4.51626944,134.72,134.68,0.68405251]
[1767627040487,11.2404391,134.71,134.68,0.68405251]
[1767627040790,11.2404391,134.71,134.65,22.38297024]
[1767627040791,3.81708523,134.7,134.65,8.11058101]
[1767627040976,3.81708523,134.69,134.66,0.68405251]
[1767627041590,3.81708523,134.7,134.66,8.11002287]
[1767627041891,7.42296756,134.72,134.67,8.10948874]
[1767627042084,3.81708523,134.7,134.67,8.10948874]
[1767627042670,3.81708523,134.7,134.67,0.68405251]
[1767627043774,11.24099585,134.7,134.67,0.68405251]
[1767627044091,3.81708523,134.68,134.65,0.68405251]
[1767627044263,0.70512423,134.69,134.65,0.68405251]
[1767627044468,3.81708523,134.68,134.65,0.68405251]
[1767627045072,3.81708523,134.67,134.64,0.68405251]
[1767627046569,3.81708523,134.67,134.62,8.11220835]
[1767627046570,3.81708523,134.66,134.62,8.11220835]
[1767627046794,3.81708523,134.66,134.63,0.68405251]
[1767627047095,3.81708523,134.66,134.63,8.1117931]
[1767627047287,3.81708523,134.66,134.63,0.68405251]
[1767627047884,3.81708523,134.66,134.63,8.11180906]
[1767627048198,3.81708523,134.67,134.64,0.68405251]
[1767627052000,7.42558942,134.67,134.64,0.68405251]
[1767627052182,3.81708523,134.68,134.65,0.68405251]
[1767627052386,3.81708523,134.7,134.65,0.68405251]
[1767627052995,3.81708523,134.68,134.65,0.68405251]
[1767627053201,0.099,134.7,134.65,0.68405251]
[1767627053501,3.93640413,134.66,134.62,19.23103033]
[1767627053970,3.81708523,134.65,134.62,19.23103033]
[1767627054175,3.81708523,134.65,134.62,0.66093161]
[1767627054513,0.1193189,134.66,134.62,0.66093161]
[1767627054514,3.81708523,134.64,134.62,0.66093161]
[1767627054891,3.81708523,134.65,134.62,8.08918983]
[1767627055206,3.81708523,134.67,134.63,0.66093161]
[1767627055578,0.11348531,134.67,134.63,8.08841423]
[1767627055891,3.93057054,134.67,134.63,8.08841423]
[1767627056788,3.81708523,134.66,134.63,8.08841423]
[1767627057501,3.93057054,134.67,134.63,8.08841423]
[1767627057981,3.81708523,134.66,134.63,0.66093161]
[1767627058584,3.81708523,134.65,134.62,8.08897967]
[1767627059294,3.81708523,134.65,134.62,0.66093161]
[1767627060683,3.81708523,134.64,134.61,0.7039231]
[1767627060877,3.81708523,134.64,134.6,21.67307742]
[1767627060878,4.50815438,134.64,134.6,21.67307742]
[1767627061084,4.50815438,134.64,134.6,21.67311645]
[1767627061401,3.94212163,134.63,134.59,8.13376502]
[1767627061605,3.81708523,134.62,134.59,0.7039231]
[1767627061806,3.81708523,134.63,134.6,7.42912287]
[1767627062179,11.96144649,134.65,134.61,0.7039231]
[1767627062382,4.53445378,134.67,134.62,0.7039231]
[1767627062808,4.53445378,134.67,134.62,4.52100833]
[1767627063008,20.96536538,134.68,134.63,0.7039231]
[1767627063009,17.35708523,134.68,134.63,0.7039231]
[1767627063199,8.1418288,134.69,134.6,39.54267413]
[1767627063200,3.81708523,134.69,134.65,0.7039231]
[1767627063610,3.81708523,134.68,134.65,0.7039231]
[1767627063784,3.81708523,134.68,134.65,8.13031486]
[1767627063979,7.52292259,134.7,134.66,0.7039231]
[1767627063980,3.81708523,134.7,134.66,0.7039231]
[1767627064205,7.52262254,134.71,134.66,0.7039231]
[1767627064399,3.81708523,134.7,134.66,0.7039231]
[1767627064708,4.52827009,134.7,134.66,0.7039231]
[1767627065305,32.09794795,134.72,134.67,0.7039231]
[1767627065306,25.49737411,134.72,134.67,0.7039231]
[1767627065897,3.81708523,134.71,134.67,0.7039231]
[1767627067406,18.07445378,134.72,134.68,0.7039231]
[1767627068005,3.81708523,134.71,134.68,0.7039231]
[1767627068906,18.07445378,134.72,134.68,0.7039231]
[1767627069511,3.81708523,134.71,134.68,0.7039231]
[1767627069697,3.81708523,134.71,134.68,8.12889451]
[1767627070016,4.64951449,134.74,134.7,0.7039231]
[1767627070196,7.51826125,134.79,134.73,0.7039231]
[1767627070402,3.81708523,134.78,134.74,0.7039231]
[1767627070606,0.71118486,134.78,134.74,3.81708523]
[1767627070798,13.54,134.79,134.75,0.7039231]
[1767627071001,13.54,134.79,134.76,0.7039231]
[1767627071204,0.71118486,134.78,134.75,11.23775981]
[1767627071712,0.71736855,134.8,134.75,11.94168291]
[1767627072013,4.53445378,134.8,134.75,11.94168291]
[1767627072212,3.81708523,134.79,134.73,7.42192114]
[1767627072414,3.81708523,134.77,134.73,7.42192114]
[1767627072597,25.96281173,134.81,134.72,8.12652518]
[1767627072797,2.44252813,134.77,134.72,10.56905331]
[1767627073397,2.44252813,134.77,134.73,0.7039231]
[1767627073795,7.41974101,134.78,134.73,3.14645123]
[1767627073991,9.86226914,134.78,134.74,0.7039231]
[1767627074412,7.41974101,134.78,134.74,0.7039231]
[1767627074618,9.86226914,134.78,134.74,0.7039231]
[1767627076519,7.41908605,134.79,134.74,0.7039231]
[1767627076697,0.1,134.82,134.77,0.7039231]
[1767627076898,2.44252813,134.81,134.77,0.7039231]
[1767627077400,2.44252813,134.8,134.77,0.7039231]
[1767627077799,0.1,134.82,134.77,0.7039231]
[1767627077800,2.44252813,134.81,134.77,0.7039231]
[1767627078001,0.1,134.82,134.77,0.7039231]
[1767627078202,0.1,134.82,134.75,7.4209868]
[1767627078203,2.44252813,134.8,134.75,2.44252813]
[1767627078418,2.44252813,134.79,134.75,0.7039231]
[1767627078721,2.44252813,134.78,134.73,8.1259598]
[1767627078907,9.86213463,134.78,134.74,0.7039231]
[1767627079112,2.44252813,134.78,134.74,0.7039231]
[1767627079813,2.44252813,134.79,134.75,0.7039231]
[1767627080217,2.44252813,134.8,134.76,0.7039231]
[1767627080625,2.44252813,134.77,134.73,0.7039231]
[1767627081525,2.44252813,134.78,134.74,0.7039231]
[1767627082624,2.44252813,134.77,134.74,0.7039231]
[1767627082827,2.44252813,134.78,134.74,0.7039231]
[1767627083904,0.1,134.82,134.76,0.7039231]
[1767627084105,0.1,134.82,134.79,0.7039231]
[1767627085632,0.1,134.82,134.8,0.7039231]
[1767627087313,0.1,134.82,134.81,0.7039231]
[1767627087522,0.1,134.85,134.82,0.7039231]
[1767627088018,0.1,134.85,134.83,6.69497466]
[1767627088207,0.1,134.86,134.84,0.7039231]
[1767627088915,0.1,134.86,134.82,14.111884]
[1767627089109,0.1,134.86,134.82,8.12083244]
[1767627089315,0.1,134.86,134.83,0.7039231]
[1767627089614,0.1,134.86,134.83,6.69497466]
[1767627089822,0.1,134.88,134.86,0.7039231]
[1767627090335,0.2009899,134.88,134.85,7.41554985]
[1767627090512,0.1,134.88,134.86,13.40613286]
[1767627090833,0.1,134.88,134.85,14.11038362]
[1767627091317,0.1,134.88,134.86,7.41507128]
[1767627091506,0.1,134.88,134.85,14.11047679]
[1767627091712,0.1,134.88,134.86,7.41495627]
[1767627091944,0.1,134.88,134.86,13.40600783]
[1767627092137,7.51203636,134.92,134.88,0.65654785]
[1767627092352,0.1,134.92,134.88,6.64759941]
[1767627092634,0.1,134.92,134.89,6.64759941]
[1767627093019,0.1,134.92,134.91,0.65654785]
[1767627095937,0.1,134.95,134.91,27.57994555]
[1767627096112,0.1,134.95,134.92,5.99105156]
[1767627096429,0.1,134.95,134.93,0.65654785]
[1767627097614,7.4075789,135.0,134.96,0.65654785]
[1767627097814,0.62568,135.0,134.96,5.99105156]
[1767627098028,13.49835191,135.01,134.96,5.99105156]
[1767627098312,13.49835191,135.01,134.94,13.40149366]
[1767627098313,13.3986235,135.0,134.94,13.40149366]
[1767627098529,5.99105156,134.99,134.94,7.4104421]
[1767627098729,8.09754468,135.0,134.94,13.40149366]
[1767627098909,5.99105156,134.99,134.94,13.40149366]
[1767627099237,0.13862698,134.99,134.92,13.52]
[1767627099432,5.99105156,134.99,134.94,5.99105156]
[1767627099730,5.99105156,134.99,134.95,0.65654785]
[1767627100028,7.54619892,135.0,134.95,0.65654785]
[1767627100248,5.99105156,134.97,134.93,0.65654785]
[1767627100429,8.09746516,135.0,134.95,0.65654785]
[1767627100632,8.09746516,135.0,134.95,6.64759941]
[1767627100633,14.08851672,135.0,134.95,6.64759941]
[1767627100813,5.99105156,134.99,134.95,0.65654785]
[1767627101018,0.68997274,135.0,134.95,6.64759941]
[1767627101222,0.1,135.01,134.97,0.65654785]
[1767627101425,7.64554025,135.01,134.97,0.65654785]
[1767627101640,5.99105156,135.0,134.97,0.65654785]
[1767627101876,13.63659181,135.01,134.97,0.65654785]
[1767627102313,5.99105156,134.98,134.93,0.65654785]
[1767627103028,5.99105156,134.98,134.94,0.65654785]
[1767627103228,13.54309301,134.99,134.94,6.64759941]
[1767627103416,13.54309301,134.99,134.94,8.06723368]
[1767627103616,13.54309301,134.99,134.94,6.64759941]
[1767627103819,13.54309301,134.99,134.94,14.05818622]
[1767627104025,6.7810243,135.01,134.96,6.64759941]
[1767627104542,0.13862698,135.0,134.96,5.99105156]
[1767627105115,6.09105156,135.01,134.97,0.65654785]
[1767627105328,0.1,135.01,134.97,0.65654785]
[1767627105540,7.50703945,135.01,134.97,0.65654785]
[1767627105745,14.18255029,135.01,134.97,0.65654785]
[1767627106041,5.99105156,135.0,134.95,6.64759941]
[1767627106245,5.99105156,134.99,134.95,0.65654785]
[1767627106420,6.6701071,134.99,134.95,0.65654785]
[1767627106624,0.67905554,134.99,134.95,0.65654785]
[1767627106826,6.6701071,134.99,134.95,0.65654785]
[1767627107318,6.67551084,134.99,134.95,0.65654785]
[1767627107534,8.09277261,134.99,134.94,0.65654785]
[1767627107730,18.61714687,135.01,134.95,6.64759941]
[1767627107731,0.1,135.01,134.95,6.64759941]
[1767627107933,0.1,135.01,134.97,0.65654785]
[1767627108315,7.50699221,135.01,134.97,0.65654785]
[1767627108517,13.49804377,135.01,134.97,0.65654785]
[1767627108712,13.49804377,135.01,134.94,25.93737226]
[1767627108713,0.13862698,135.0,134.95,5.99105156]
[1767627108949,6.12967854,135.0,134.95,0.65654785]
[1767627109397,0.13862698,135.0,134.95,0.65654785]
[1767627109526,6.12967854,135.0,134.95,6.64759941]
[1767627109846,5.99105156,134.99,134.95,8.06658548]
[1767627110050,13.53710673,135.0,134.95,0.65654785]
[1767627110423,5.99105156,134.99,134.95,0.65654785]
[1767627110851,13.53710673,135.0,134.95,8.06666473]
[1767627111056,13.53710673,135.0,134.96,0.65654785]
[1767627111439,13.49802701,135.01,134.96,0.65654785]
[1767627111645,50.54556101,135.05,134.93,13.5]
[1767627111646,0.13862698,135.05,135.01,0.65654785]
[1767627111954,3.86215634,135.06,135.01,0.65654785]
[1767627111955,3.13715634,135.06,135.05,0.65654785]
[1767627112255,0.1,135.09,135.05,0.65654785]
[1767627112457,0.1,135.09,135.05,6.64759941]
[1767627112826,0.6952346,135.14,135.07,0.70680283]
[1767627113144,0.6952346,135.14,135.09,0.70680283]
[1767627113475,0.6952346,135.12,135.08,0.70680283]
[1767627114152,14.08617675,135.14,135.08,0.70680283]
[1767627114346,7.49943118,135.15,135.1,0.70680283]
[1767627114548,7.49943118,135.15,135.11,5.99105156]
[1767627114744,8.19466578,135.15,135.1,0.70680283]
[1767627114975,0.6952346,135.14,135.1,0.70680283]
[1767627116055,0.6952346,135.14,135.1,6.69785439]
[1767627116250,0.6952346,135.14,135.1,0.70680283]
[1767627116464,0.6952346,135.14,135.08,0.70680283]
[1767627116465,5.99105156,135.13,135.08,0.70680283]
[1767627116775,6.68628616,135.13,135.08,14.10076596]
[1767627117157,0.6952346,135.13,135.08,8.1097144]
[1767627117477,6.68628616,135.13,135.08,14.10076596]
[1767627117679,0.6952346,135.12,135.08,13.39396313]
[1767627117852,0.6952346,135.12,135.08,7.40291157]
[1767627118057,7.39981156,135.14,135.08,7.40291157]
[1767627118058,0.6952346,135.14,135.11,5.99105156]
[1767627118273,0.1,135.15,135.13,5.99105156]
[1767627118477,0.1,135.15,135.14,6.69785439]
[1767627118681,0.1,135.15,135.13,5.99105156]
[1767627119469,0.1,135.15,135.13,6.69785439]
[1767627119770,0.1,135.15,135.14,5.99105156]
[1767627120160,25.88810751,135.2,135.14,14.09753752]
[1767627120161,32.57439367,135.2,135.14,14.09753752]
[1767627120359,6.35193705,135.19,135.14,0.70680283]
[1767627120683,6.35193705,135.19,135.14,6.69785439]
[1767627121053,6.35193705,135.19,135.14,0.70680283]
[1767627121054,0.36088549,135.19,135.14,0.70680283]
[1767627121260,0.36088549,135.19,135.12,7.40080855]
[1767627121261,6.3552471,135.17,135.12,6.67400394]
[1767627121455,0.71171372,135.21,135.16,6.67400394]
[1767627121654,8.10771323,135.21,135.17,5.99105156]
[1767627122056,0.71171372,135.23,135.17,6.67400394]
[1767627122274,0.71171372,135.23,135.18,0.68295238]
[1767627122471,0.71171372,135.23,135.18,6.67400394]
[1767627122871,0.71171372,135.25,135.2,5.99105156]
[1767627123056,6.70276528,135.25,135.19,0.68295238]
[1767627123374,0.71171372,135.32,135.18,14.18295238]
[1767627123559,0.70804229,135.29,135.24,5.99105156]
[1767627123762,5.99105156,135.27,135.22,6.67400394]
[1767627124079,13.38373019,135.27,135.22,6.67400394]
[1767627124281,13.38373019,135.27,135.21,7.39548799]
[1767627124282,13.38291349,135.29,135.24,6.67400394]
[1767627124490,7.39186193,135.29,135.24,6.67400394]
[1767627124661,7.39186193,135.29,135.25,5.99105156]
[1767627124859,5.99105156,135.27,135.22,0.68295238]
[1767627125280,7.39186193,135.29,135.23,6.67400394]
[1767627125482,12.20427258,135.33,135.2,13.5]
[1767627125483,8.10292377,135.3,135.25,6.67400394]
[1767627125691,0.71171372,135.32,135.26,6.67400394]
[1767627125991,6.70276528,135.32,135.27,0.68295238]
[1767627126683,7.38934456,135.33,135.29,6.67400394]
[1767627126984,3.85368979,135.35,135.33,0.68295238]
[1767627127185,5.99105156,135.4,135.35,0.68295238]
[1767627127490,0.71171372,135.41,135.3,0.68295238]
[1767627127789,0.34457116,135.37,135.3,0.68295238]
[1767627127959,7.73191631,135.37,135.32,0.68295238]
[1767627128158,18.46695145,135.38,135.3,7.39060705]
[1767627128159,0.71171372,135.39,135.33,0.68295238]
[1767627128392,20.86557071,135.4,135.36,0.68295238]
[1767627128684,8.44239483,135.45,135.38,6.67400394]
[1767627128685,7.38334317,135.44,135.38,6.67400394]
[1767627128885,7.38334317,135.44,135.38,0.68295238]
[1767627129085,6.70276528,135.45,135.4,6.67400394]
[1767627129393,8.09472082,135.45,135.4,6.67400394]
[1767627129565,14.08577238,135.45,135.4,0.68295238]
[1767627129768,5.99105156,135.44,135.4,0.68295238]
[1767627129962,7.38388835,135.43,135.4,0.68295238]
[1767627130170,7.38388835,135.43,135.3,18.47628818]
[1767627130171,0.71171372,135.41,135.3,18.47628818]
[1767627130372,0.71171372,135.41,135.34,5.99105156]
[1767627130684,5.99105156,135.39,135.34,5.99105156]
[1767627130981,0.71171372,135.41,135.35,5.99105156]
[1767627131188,5.99105156,135.4,135.35,5.99105156]
[1767627131365,25.84360923,135.43,135.3,13.48]
[1767627131366,6.70276528,135.39,135.3,13.48]
[1767627131561,0.71171372,135.38,135.32,5.99105156]
[1767627131765,0.71171372,135.41,135.31,5.51529]
[1767627131983,13.37657593,135.4,135.35,5.99105156]
[1767627132185,13.37657593,135.4,135.34,0.68295238]
[1767627132487,0.71171372,135.39,135.34,0.68295238]
[1767627132782,7.38552437,135.4,135.36,9.65823567]
[1767627132990,7.38453967,135.42,135.37,0.68295238]
[1767627133365,8.09567894,135.43,135.37,0.68295238]
[1767627133566,7.38396522,135.43,135.39,9.65823567]
[1767627133883,7.38396522,135.43,135.38,0.68295238]
[1767627134685,7.38396522,135.43,135.39,9.65823567]
[1767627134869,0.71171372,135.42,135.39,9.65823567]
[1767627135071,7.38396522,135.43,135.39,0.68295238]
[1767627135577,7.38396522,135.43,135.39,9.65823567]
[1767627135775,7.38396522,135.43,135.39,10.34118805]
[1767627135971,7.38396522,135.43,135.39,0.68295238]
[1767627136377,7.38396522,135.43,135.39,10.34118805]
[1767627136884,7.38396522,135.43,135.39,0.68295238]
[1767627137077,8.09518593,135.44,135.4,9.65823567]
[1767627137386,9.65823567,135.43,135.39,0.68295238]
[1767627137596,25.84183015,135.44,135.38,10.34118805]
[1767627137771,36.21177954,135.44,135.39,0.68295238]
[1767627137970,36.21177954,135.44,135.38,0.68295238]
[1767627137971,26.55354387,135.44,135.38,0.68295238]
[1767627138297,9.65823567,135.42,135.35,13.48]
[1767627138593,25.84183015,135.44,135.32,0.68295238]
[1767627138594,10.36994939,135.38,135.32,0.68295238]
[1767627138772,0.71171372,135.4,135.34,0.68295238]
[1767627139090,0.71171372,135.42,135.35,0.68295238]
[1767627139271,0.71171372,135.42,135.36,0.68295238]
[1767627139272,10.36994939,135.42,135.36,0.68295238]
[1767627139467,10.36994939,135.4,135.34,0.68295238]
[1767627139673,10.36994939,135.4,135.34,10.34118805]
[1767627139887,7.38606987,135.39,135.34,10.34118805]
[1767627140085,7.38606987,135.39,135.36,9.65823567]
[1767627140270,7.38606987,135.39,135.35,10.34118805]
[1767627140472,7.38606987,135.39,135.35,0.68295238]
[1767627140680,10.36994939,135.4,135.35,10.34118805]
[1767627140974,17.75557665,135.4,135.35,0.68295238]
[1767627141171,0.71171372,135.39,135.33,10.34118805]
[1767627141377,0.71171372,135.39,135.34,0.68295238]
[1767627141579,7.38562726,135.4,135.35,10.34118805]
[1767627142099,25.84943819,135.4,135.35,0.68295238]
[1767627142302,8.09681284,135.41,135.35,10.34118805]
[1767627142494,17.75504851,135.41,135.35,0.68295238]
[1767627142674,26.55926022,135.41,135.35,10.34118805]
[1767627142873,9.65823567,135.39,135.35,0.68295238]
[1767627143200,26.55926022,135.41,135.33,0.68295238]
[1767627143201,0.71171372,135.38,135.33,0.68295238]
[1767627143493,9.65823567,135.37,135.32,9.65823567]
[1767627143695,10.36994939,135.36,135.31,0.68295238]
[1767627143895,17.04809029,135.33,135.29,13.48]
[1767627144205,26.57492975,135.33,135.28,0.68295238]
[1767627144380,8.10156834,135.33,135.28,10.34118805]
[1767627144890,17.75980401,135.33,135.28,0.68295238]
[1767627145101,9.65823567,135.32,135.28,0.68295238]
[1767627145303,9.65823567,135.3,135.25,13.46]
[1767627145475,10.36994939,135.29,135.25,13.46]
[1767627145680,9.65823567,135.28,135.24,0.68295238]
[1767627145983,17.05057507,135.28,135.24,0.68295238]
[1767627146479,17.05057507,135.28,135.23,7.39475188]
[1767627146684,0.71171372,135.29,135.24,8.07720125]
[1767627147006,17.7615343,135.29,135.24,8.07720125]
[1767627147184,0.71171372,135.29,135.24,8.07720125]
[1767627147389,7.39111714,135.3,135.25,0.68295238]
[1767627147591,21.56217999,135.31,135.25,0.68295238]
[1767627147899,7.38997487,135.32,135.27,10.34118805]
[1767627148602,9.65823567,135.41,135.27,10.34118805]
[1767627148603,0.71171372,135.35,135.3,10.34118805]
[1767627148909,7.38786715,135.36,135.31,9.65823567]
[1767627149200,0.71171372,135.39,135.34,10.34118805]
[1767627149426,10.36994939,135.43,135.35,0.68295238]
[1767627149579,9.65823567,135.41,135.35,0.68295238]
[1767627149780,0.71171372,135.42,135.36,0.68295238]
[1767627150009,0.71171372,135.42,135.37,0.68295238]
[1767627150190,8.09505689,135.44,135.38,10.34118805]
[1767627150393,17.75329256,135.44,135.38,0.68295238]
[1767627150719,17.75329256,135.44,135.3,18.00837404]
[1767627150720,9.65823567,135.4,135.36,0.68295238]
[1767627150934,8.1076277,135.44,135.36,0.68295238]
[1767627151107,0.72428453,135.44,135.39,9.65823567]
[1767627151306,3.85044793,135.55,135.39,0.68046022]
[1767627151307,8.10662805,135.46,135.39,0.68046022]
[1767627151507,17.76486372,135.46,135.4,0.68046022]
[1767627151718,8.10662805,135.46,135.4,0.68046022]
[1767627152030,0.72428453,135.46,135.41,10.33869589]
[1767627152205,7.38176709,135.47,135.42,0.68046022]
[1767627152405,0.72428453,135.48,135.42,0.68046022]
[1767627152614,17.76370302,135.48,135.43,10.33869589]
[1767627153035,26.55837552,135.48,135.43,0.68046022]
[1767627153333,17.76370302,135.48,135.43,10.33869589]
[1767627153512,17.76370302,135.48,135.43,0.68046022]
[1767627153709,10.3825202,135.47,135.41,0.68046022]
[1767627154012,17.04093087,135.46,135.41,0.68046022]
[1767627154213,7.3826952,135.46,135.41,0.68046022]
[1767627154445,9.65823567,135.45,135.39,9.65823567]
[1767627154628,9.65823567,135.45,135.39,0.68046022]
[1767627154817,9.65823567,135.43,135.37,0.68046022]
[1767627155013,17.7652154,135.46,135.4,10.33869589]
[1767627155208,17.7652154,135.46,135.4,8.06559807]
[1767627155404,17.7652154,135.46,135.41,9.65823567]
[1767627155630,9.65823567,135.45,135.4,0.68046022]
[1767627155841,17.7652154,135.46,135.4,10.33869589]
[1767627156015,17.04002656,135.47,135.41,10.33869589]
[1767627156215,9.65823567,135.46,135.41,10.33869589]
[1767627156515,0.72428453,135.44,135.38,0.68046022]
[1767627156714,0.72428453,135.44,135.38,10.33869589]
[1767627157020,9.65823567,135.4,135.34,9.65823567]
[1767627157225,0.72428453,135.41,135.34,9.65823567]
[1767627157528,9.65823567,135.4,135.31,5.51529]
[1767627158034,17.76766768,135.41,135.32,7.38989062]
[1767627158204,17.76766768,135.41,135.35,9.65823567]
[1767627158408,0.72428453,135.41,135.32,25.86461719]
[1767627158711,0.72428453,135.41,135.36,9.65823567]
[1767627159031,0.72428453,135.41,135.35,9.65823567]
[1767627159218,9.65823567,135.4,135.34,0.576822]
[1767627159425,0.72428453,135.41,135.32,25.86461719]
[1767627159426,0.72428453,135.41,135.35,10.23505767]
[1767627159627,17.76756449,135.41,135.35,17.62304419]
[1767627159939,9.65823567,135.4,135.35,7.96480852]
[1767627160631,17.76756449,135.41,135.35,17.62304419]
[1767627160834,17.04386657,135.4,135.35,7.96480852]
[1767627161014,7.3856309,135.4,135.35,7.96480852]
[1767627161212,0.72428453,135.45,135.38,10.23505767]
[1767627161416,10.3825202,135.42,135.36,0.576822]
[1767627161644,9.65823567,135.41,135.36,0.576822]
[1767627161816,0.72428453,135.42,135.36,0.576822]
[1767627162016,9.65823567,135.41,135.36,0.576822]
[1767627162417,10.3825202,135.42,135.36,10.23505767]
[1767627162618,9.65823567,135.41,135.36,0.576822]
[1767627162813,9.65823567,135.41,135.35,30.50622219]
[1767627162814,10.3825202,135.41,135.35,13.46]
[1767627163015,0.72428453,135.45,135.38,0.576822]
[1767627163332,0.72428453,135.43,135.38,10.23505767]
[1767627164236,0.72428453,135.43,135.38,17.62120749]
[1767627164534,0.72428453,135.43,135.36,18.46926713]
[1767627164535,17.76670984,135.43,135.37,17.04519765]
[1767627164736,8.10819182,135.43,135.38,7.38656775]
[1767627164932,17.76642749,135.43,135.37,17.62199183]
[1767627165240,17.76642749,135.43,135.35,13.46]
[1767627165241,10.3825202,135.4,135.35,14.036822]
[1767627165420,0.72428453,135.4,135.35,13.46]
[1767627165615,10.3825202,135.4,135.35,13.46]
[1767627165819,10.3825202,135.38,135.33,7.96594612]
[1767627166034,10.3825202,135.38,135.33,17.62418179]
[1767627166229,0.72428453,135.38,135.34,7.38871239]
[1767627166435,0.72428453,135.38,135.32,10.23505767]
[1767627166436,8.11098723,135.38,135.32,10.23505767]
[1767627166647,17.7692229,135.38,135.32,10.23505767]
[1767627166939,9.65823567,135.39,135.33,17.62430584]
[1767627167138,0.72428453,135.37,135.31,14.036822]
[1767627167437,25.84957346,135.4,135.31,9.65823567]
[1767627167438,0.72428453,135.39,135.31,9.65823567]
[1767627167738,0.72428453,135.38,135.31,17.62509232]
[1767627168038,0.72428453,135.37,135.32,17.04789936]
[1767627168233,8.11150207,135.37,135.32,17.04789936]
[1767627168535,18.46381093,135.4,135.29,0.576822]
[1767627168536,0.72428453,135.35,135.29,0.576822]